bitfinex/quotes_SOLUSD_20250719
["timestamp","ask_amount","ask_price","bid_price","bid_amount"]
[1752950410461,0.06,177.3,177.26,0.03]
[1752950410462,2.30715985,177.27,177.26,0.03]
[1752950410751,0.06,177.3,177.26,0.03]
[1752950410956,4.27718945,177.28,177.26,0.03]
[1752950411164,0.06,177.3,177.26,0.03]
[1752950411165,4.27718945,177.27,177.26,0.03]
[1752950411633,9.91830187,177.27,177.26,0.03]
[1752950415953,6.31111242,177.27,177.26,0.03]
[1752950416852,9.91830187,177.27,177.26,0.03]
[1752950417056,0.67,177.29,177.26,0.75]
[1752950417425,4.27718945,177.28,177.26,0.03]
[1752950417830,0.67,177.27,177.26,0.03]
[1752950420174,6.31111242,177.27,177.26,0.03]
[1752950421461,9.91830187,177.27,177.26,0.03]
[1752950424363,6.31111242,177.27,177.26,0.03]
[1752950424556,9.91830187,177.27,177.26,0.03]
[1752950424864,9.24774351,177.29,177.26,0.03]
[1752950425045,9.24774351,177.29,177.26,0.7]
[1752950425659,0.06,177.3,177.28,3.60718945]
[1752950425859,0.06,177.3,177.29,4.27718945]
[1752950426165,0.06,177.3,177.29,30.27718945]
[1752950427174,0.06,177.3,177.29,35.9176655]
[1752950427472,0.06,177.3,177.29,52.70234947]
[1752950427673,0.06,177.3,177.29,91.94234947]
[1752950427849,0.06,177.3,177.29,98.34234947]
[1752950433568,0.06,177.3,177.29,98.90639707]
[1752950433943,0.06,177.3,177.29,132.72639707]
[1752950434186,0.06,177.3,177.29,132.16234947]
[1752950434550,0.06,177.3,177.29,135.76953892]
[1752950439395,0.06,177.3,177.29,132.16234947]
[1752950439974,0.06,177.3,177.29,135.76953892]
[1752950440991,0.06,177.3,177.29,132.16234947]
[1752950443770,0.06,177.3,177.29,122.91468397]
[1752950444085,0.75,177.3,177.28,6.4]
[1752950444259,0.69,177.29,177.28,23.18468397]
[1752950445563,0.69,177.29,177.28,6.4]
[1752950447792,9.9376655,177.29,177.26,39.25]
[1752950448000,0.69,177.28,177.26,0.03]
[1752950448293,0.69,177.28,177.27,26.0]
[1752950448875,0.69,177.28,177.26,0.03]
[1752950449876,5.64111242,177.27,177.26,26.03]
[1752950450205,6.33111242,177.27,177.26,0.03]
[1752950450407,9.93830187,177.27,177.26,0.03]
[1752950454409,6.33111242,177.27,177.26,0.03]
[1752950454912,9.93830187,177.27,177.26,0.03]
[1752950457720,6.33111242,177.27,177.26,0.03]
[1752950458027,5.64111242,177.27,177.26,0.03]
[1752950460015,6.30111242,177.27,177.26,0.03]
[1752950462588,5.64111242,177.27,177.26,0.03]
[1752950465391,6.30111242,177.27,177.26,0.03]
[1752950467507,9.90830187,177.27,177.26,0.03]
[1752950467979,9.90830187,177.27,177.26,1e-08]
[1752950468381,9.90830187,177.27,177.25,1e-08]
[1752950468583,4.26718945,177.26,177.25,1e-08]
[1752950469282,9.90862011,177.26,177.25,1e-08]
[1752950479318,6.30143066,177.26,177.25,1e-08]
[1752950479512,49.28862011,177.26,177.25,1e-08]
[1752950481409,49.34862011,177.26,177.25,1e-08]
[1752950494318,26.0,177.23,177.22,1e-08]
[1752950494524,72.5543789,177.23,177.22,1e-08]
[1752950494823,69.62718945,177.23,177.22,1e-08]
[1752950495033,73.2343789,177.23,177.22,1e-08]
[1752950495217,75.26957505,177.23,177.22,1e-08]
[1752950495614,75.26957505,177.23,177.19,1e-08]
[1752950495615,26.0,177.2,177.19,1e-08]
[1752950495818,68.98718945,177.2,177.18,1e-08]
[1752950496121,4.28718945,177.19,177.18,1e-08]
[1752950497116,0.68,177.19,177.18,1e-08]
[1752950497311,9.93084879,177.19,177.18,1e-08]
[1752950498641,48.63084879,177.19,177.18,1e-08]
[1752950498938,49.31084879,177.19,177.18,1e-08]
[1752950500131,45.02365934,177.19,177.18,1e-08]
[1752950500330,48.63084879,177.19,177.18,1e-08]
[1752950500625,49.31084879,177.19,177.18,1e-08]
[1752950517759,9.93084879,177.19,177.18,1e-08]
[1752950517939,49.31084879,177.19,177.18,1e-08]
[1752950520865,45.70365934,177.19,177.18,1e-08]
[1752950521067,49.31084879,177.19,177.18,1e-08]
[1752950523265,9.93084879,177.19,177.18,1e-08]
[1752950523443,49.29084879,177.19,177.18,1e-08]
[1752950523764,49.35084879,177.19,177.18,1e-08]
[1752950529958,63.45999716,177.19,177.15,0.03]
[1752950530178,3.60718945,177.16,177.15,0.03]
[1752950530379,42.96718945,177.16,177.15,0.03]
[1752950530557,43.63718945,177.16,177.15,0.03]
[1752950531479,49.28180448,177.16,177.15,0.03]
[1752950534491,49.28180448,177.16,177.14,0.03]
[1752950534790,4.27718945,177.15,177.14,0.03]
[1752950536510,9.92212312,177.15,177.13,0.03]
[1752950536712,40.01,177.14,177.13,0.03]
[1752950537609,43.61718945,177.14,177.13,0.03]
[1752950537987,49.26244179,177.14,177.13,0.03]
[1752950539687,53.84781718,177.14,177.13,0.03]
[1752950539885,49.26244179,177.14,177.13,0.03]
[1752950540893,44.98525234,177.14,177.13,0.74]
[1752950542296,48.59244179,177.14,177.13,0.74]
[1752950542912,48.59244179,177.14,177.13,0.03]
[1752950544683,49.26244179,177.14,177.13,0.03]
[1752950545690,48.59244179,177.14,177.13,0.03]
[1752950548287,44.98525234,177.14,177.13,0.75]
[1752950549206,48.59244179,177.14,177.13,0.75]
[1752950550494,44.98525234,177.14,177.13,0.75]
[1752950550907,39.34,177.14,177.13,0.75]
[1752950551998,44.98525234,177.14,177.13,0.75]
[1752950557409,44.98525234,177.14,177.13,0.03]
[1752950558916,44.98525234,177.14,177.13,0.75]
[1752950559094,39.34,177.14,177.13,0.75]
[1752950559816,39.34,177.14,177.13,4.35718945]
[1752950559990,39.38,177.15,177.13,4.35718945]
[1752950560193,39.38,177.15,177.14,4.32718945]
[1752950560803,39.38,177.15,177.14,5.90858945]
[1752950561005,0.06,177.15,177.14,12.08218945]
[1752950561409,0.06,177.15,177.14,34.51212576]
[1752950565128,0.06,177.15,177.14,8.475]
[1752950565505,0.06,177.15,177.14,12.08218945]
[1752950567430,0.06,177.15,177.14,8.475]
[1752950567797,0.06,177.15,177.14,0.72]
[1752950570013,0.06,177.15,177.14,4.32718945]
[1752950582845,0.06,177.15,177.14,3.60718945]
[1752950583448,0.73,177.15,177.13,3.63718945]
[1752950583933,0.06,177.15,177.13,3.63718945]
[1752950584125,0.06,177.15,177.13,4.30718945]
[1752950584950,0.06,177.15,177.13,0.03]
[1752950585131,0.73,177.15,177.13,0.03]
[1752950585328,0.73,177.15,177.13,3.63718945]
[1752950587659,5.64525234,177.14,177.13,3.63718945]
[1752950589038,5.64525234,177.14,177.13,2.34161273]
[1752950589238,0.67,177.14,177.13,2.34161273]
[1752950589543,0.73,177.15,177.13,2.34161273]
[1752950589930,0.73,177.15,177.13,0.03]
[1752950590126,0.67,177.14,177.13,0.03]
[1752950591350,8.62686507,177.14,177.13,0.03]
[1752950592962,9.92872043,177.14,177.13,0.03]
[1752950596845,6.31525234,177.14,177.13,0.03]
[1752950597039,9.92872043,177.14,177.13,0.03]
[1752950604059,5.64525234,177.14,177.13,0.03]
[1752950605736,5.70497491,177.15,177.13,0.03]
[1752950605942,0.06,177.15,177.14,3.61346809]
[1752950606166,0.06,177.15,177.14,4.33346809]
[1752950606839,0.06,177.15,177.14,0.72]
[1752950607040,0.06,177.15,177.14,4.33346809]
[1752950607778,0.06,177.15,177.14,9.97872043]
[1752950608758,0.06,177.15,177.14,26.7634044]
[1752950609966,0.06,177.15,177.14,33.1634044]
[1752950611368,0.06,177.15,177.14,67.0334044]
[1752950611975,0.06,177.15,177.14,68.5753044]
[1752950612155,0.06,177.19,177.18,3.61346809]
[1752950612562,0.06,177.19,177.18,4.33346809]
[1752950614784,0.06,177.19,177.18,9.97744596]
[1752950618356,0.06,177.19,177.18,4.33346809]
[1752950619577,0.06,177.19,177.18,3.61346809]
[1752950620078,0.06,177.19,177.18,4.33346809]
[1752950623082,0.06,177.19,177.18,3.02972319]
[1752950623775,0.06,177.19,177.16,7.12]
[1752950624079,0.06,177.19,177.18,2.30972319]
[1752950624775,0.74,177.19,177.17,2.30972319]
[1752950625149,0.68,177.18,177.17,2.30972319]
[1752950627086,0.68,177.18,177.17,3.61015277]
[1752950627886,6.32397787,177.18,177.17,3.61015277]
[1752950630358,6.32397787,177.18,177.14,0.72]
[1752950630567,6.32397787,177.18,177.16,3.61015277]
[1752950633795,6.32397787,177.18,177.14,0.72]
[1752950633988,6.32397787,177.18,177.16,3.61015277]
[1752950634186,0.66,177.17,177.16,3.61015277]
[1752950636296,6.30397787,177.18,177.16,3.61015277]
[1752950636587,6.30397787,177.18,177.14,0.72]
[1752950636787,6.30397787,177.18,177.17,3.61015277]
[1752950638094,0.72,177.19,177.17,3.61015277]
[1752950639581,6.36385913,177.19,177.17,3.61015277]
[1752950639779,0.06,177.19,177.18,4.31015277]
[1752950640398,0.06,177.19,177.18,3.61015277]
[1752950640786,5.70365934,177.19,177.18,3.61015277]
[1752950640990,6.36365934,177.19,177.18,3.61015277]
[1752950641875,5.70365934,177.19,177.18,3.61015277]
[1752950643298,6.36365934,177.19,177.17,3.61015277]
[1752950644386,0.66,177.18,177.17,3.61015277]
[1752950644894,0.66,177.18,177.15,0.7]
[1752950645280,0.66,177.18,177.17,3.61015277]
[1752950645889,6.30397787,177.18,177.17,3.61015277]
[1752950646281,5.64397787,177.18,177.17,3.61015277]
[1752950646999,5.64397787,177.18,177.17,2.31051396]
[1752950650699,0.06,177.19,177.17,2.31051396]
[1752950650899,0.72,177.19,177.17,2.31051396]
[1752950652803,5.64397787,177.18,177.17,2.31051396]
[1752950653802,6.30397787,177.18,177.15,0.03]
[1752950653991,0.66,177.17,177.15,0.03]
[1752950654195,2.97051396,177.17,177.15,0.03]
[1752950654395,0.66,177.17,177.15,0.03]
[1752950654700,0.66,177.16,177.15,0.03]
[1752950654905,6.30461503,177.16,177.15,0.03]
[1752950661206,8.61512899,177.16,177.15,0.03]
[1752950662580,6.30461503,177.16,177.13,0.03]
[1752950662810,0.66,177.15,177.13,0.03]
[1752950663391,3.02051396,177.14,177.13,0.03]
[1752950665619,8.6657663,177.14,177.13,0.03]
[1752950666312,6.35525234,177.14,177.13,0.03]
[1752950666520,8.6657663,177.14,177.13,0.03]
[1752950668110,8.6657663,177.14,177.11,0.03]
[1752950668316,2.31051396,177.12,177.11,0.03]
[1752950668715,3.02051396,177.12,177.11,0.03]
[1752950669920,8.66640375,177.12,177.11,0.03]
[1752950670606,8.66640375,177.12,177.1,0.03]
[1752950670811,26.0,177.1,177.07,0.2]
[1752950671121,2.31051396,177.08,177.07,0.2]
[1752950671325,41.57051396,177.08,177.07,0.2]
[1752950671633,42.28051396,177.08,177.07,0.2]
[1752950672627,47.92767908,177.08,177.07,0.2]
[1752950672802,49.52507908,177.08,177.07,0.2]
[1752950673002,50.8315919,177.08,177.07,0.2]
[1752950673207,50.8315919,177.08,177.05,0.03]
[1752950673408,0.71,177.07,177.05,0.03]
[1752950673912,3.61702678,177.06,177.05,0.03]
[1752950674531,9.97482978,177.06,177.05,0.03]
[1752950677210,49.25482978,177.06,177.05,0.03]
[1752950680820,45.637803,177.06,177.05,0.03]
[1752950681119,49.25482978,177.06,177.05,0.03]
[1752950682153,44.927803,177.06,177.05,0.03]
[1752950682441,49.25482978,177.06,177.05,0.03]
[1752950682946,9.97482978,177.06,177.05,0.03]
[1752950683115,49.25482978,177.06,177.05,0.03]
[1752950684141,9.97482978,177.06,177.05,0.03]
[1752950684341,49.25482978,177.06,177.05,0.03]
[1752950686055,9.97482978,177.06,177.05,0.03]
[1752950686236,49.25482978,177.06,177.05,0.03]
[1752950688550,9.97482978,177.06,177.05,0.03]
[1752950688846,49.25482978,177.06,177.05,0.03]
[1752950693353,5.64716512,177.08,177.05,0.69]
[1752950693648,39.28,177.07,177.06,0.66]
[1752950694420,39.28,177.07,177.05,0.69]
[1752950695226,44.92759532,177.07,177.05,0.69]
[1752950695454,44.92759532,177.07,177.05,0.03]
[1752950695631,44.92759532,177.07,177.06,0.66]
[1752950695839,44.98759532,177.07,177.06,0.66]
[1752950697655,39.34,177.07,177.06,0.66]
[1752950698763,39.34,177.07,177.06,2.97398806]
[1752950699654,0.06,177.07,177.05,0.03]
[1752950699952,0.06,177.07,177.05,3.00398806]
[1752950702647,0.06,177.07,177.06,0.66]
[1752950702837,0.06,177.07,177.06,2.97398806]
[1752950703039,0.06,177.07,177.06,8.62179106]
[1752950703742,0.06,177.07,177.06,25.40647503]
[1752950704474,0.06,177.11,177.07,22.83818397]
[1752950704635,0.06,177.11,177.1,2.31398806]
[1752950705055,0.06,177.11,177.1,2.97398806]
[1752950706349,0.06,177.11,177.1,8.62051544]
[1752950707030,0.06,177.11,177.1,9.9185093]
[1752950707965,0.06,177.11,177.1,4.27198192]
[1752950709545,0.06,177.11,177.1,3.61198192]
[1752950712473,0.75,177.11,177.1,3.61198192]
[1752950712654,0.06,177.11,177.1,3.61198192]
[1752950713947,0.06,177.11,177.1,4.27198192]
[1752950715372,0.06,177.11,177.1,3.61198192]
[1752950715552,0.75,177.11,177.1,3.61198192]
[1752950716276,0.06,177.11,177.1,3.61198192]
[1752950716568,0.75,177.11,177.1,3.61198192]
[1752950716770,0.75,177.11,177.09,3.61198192]
[1752950717841,0.69,177.1,177.08,3.61198192]
[1752950718247,0.69,177.09,177.08,3.61198192]
[1752950718766,5.64684585,177.1,177.08,4.27198192]
[1752950718968,0.75,177.11,177.08,4.27198192]
[1752950718969,0.06,177.11,177.09,3.61198192]
[1752950719164,0.06,177.11,177.1,3.61198192]
[1752950719368,5.70620857,177.11,177.09,4.27198192]
[1752950720070,5.70620857,177.11,177.09,3.61198192]
[1752950720454,0.06,177.11,177.09,3.61198192]
[1752950720659,0.06,177.11,177.1,4.27198192]
[1752950726477,0.06,177.11,177.1,9.9185093]
[1752950727014,0.06,177.11,177.1,8.61849191]
[1752950727277,0.06,177.11,177.1,2.97196453]
[1752950728271,0.06,177.11,177.1,8.61849191]
[1752950730779,0.06,177.11,177.1,2.97196453]
[1752950731450,0.06,177.11,177.1,0.66]
[1752950731654,0.06,177.11,177.1,2.31196453]
[1752950733762,0.06,177.11,177.09,0.69]
[1752950733964,0.06,177.11,177.1,2.31196453]
[1752950737383,0.06,177.11,177.09,0.69]
[1752950737686,0.06,177.11,177.1,2.31196453]
[1752950738683,0.06,177.11,177.1,3.00196453]
[1752950739793,0.06,177.11,177.1,8.64849191]
[1752950740473,0.06,177.11,177.1,25.43317588]
[1752950740679,0.06,177.11,177.1,31.83317588]
[1752950743270,0.06,177.11,177.1,6.4]
[1752950743787,0.06,177.11,177.1,2.31196453]
[1752950745076,0.72,177.11,177.1,3.61283739]
[1752950746193,0.06,177.11,177.1,3.61283739]
[1752950746778,0.06,177.11,177.1,4.30283739]
[1752950748291,0.06,177.11,177.1,3.61283739]
[1752950749167,0.72,177.11,177.1,3.61283739]
[1752950751469,0.72,177.11,177.09,26.0]
[1752950751787,0.72,177.11,177.1,3.61283739]
[1752950755403,0.06,177.11,177.1,3.61283739]
[1752950755614,0.06,177.11,177.1,4.31283739]
[1752950757877,0.06,177.11,177.1,9.95936477]
[1752950765006,0.06,177.11,177.1,8.65822399]
[1752950767507,0.06,177.11,177.1,25.44290796]
[1752950767884,0.06,177.11,177.1,65.71290796]
[1752950771528,0.06,177.11,177.1,104.23290796]
[1752950771818,0.06,177.11,177.1,51.26652738]
[1752950772005,0.06,177.11,177.1,47.93169661]
[1752950772209,0.06,177.11,177.1,8.71169661]
[1752950772717,0.73,177.11,177.1,8.71169661]
[1752950772916,0.73,177.11,177.1,6.4]
[1752950773305,0.73,177.11,177.1,10.01292828]
[1752950773605,0.73,177.11,177.1,3.61292828]
[1752950774221,0.73,177.11,177.09,6.4]
[1752950774523,0.73,177.11,177.1,26.0]
[1752950774896,9.98915646,177.11,177.05,0.03]
[1752950775114,0.67,177.1,177.05,3.64292828]
[1752950775317,5.64684623,177.09,177.05,3.64292828]
[1752950775518,0.67,177.08,177.05,3.64292828]
[1752950776313,0.67,177.08,177.05,0.03]
[1752950776519,4.28292828,177.08,177.05,0.03]
[1752950776907,0.67,177.07,177.05,0.03]
[1752950778035,6.31777181,177.07,177.05,0.03]
[1752950778410,0.67,177.06,177.05,0.03]
[1752950782011,6.317803,177.06,177.05,0.03]
[1752950786031,9.93073128,177.06,177.05,0.03]
[1752950789716,6.317803,177.06,177.05,0.03]
[1752950790128,5.64758232,177.07,177.05,0.03]
[1752950790543,6.36758232,177.07,177.05,0.03]
[1752950790738,0.72,177.06,177.05,0.03]
[1752950792543,6.367803,177.06,177.05,0.03]
[1752950792841,9.32041208,177.08,177.05,0.03]
[1752950793042,0.72,177.07,177.05,0.03]
[1752950793949,5.7074838,177.08,177.05,4.33292828]
[1752950794626,6.4274838,177.08,177.05,4.33292828]
[1752950795145,6.4274838,177.08,177.05,3.64292828]
[1752950796345,6.42721921,177.08,177.05,4.33292828]
[1752950796545,3.61292828,177.06,177.05,0.03]
[1752950797053,4.33292828,177.06,177.05,0.03]
[1752950797940,9.98073128,177.06,177.05,0.03]
[1752950798142,6.367803,177.06,177.05,0.03]
[1752950798616,0.06,177.08,177.05,0.03]
[1752950798617,4.39292828,177.08,177.05,0.03]
[1752950798822,0.72,177.07,177.05,0.03]
[1752950800138,6.36755936,177.07,177.05,0.03]
[1752950802363,0.72,177.07,177.05,0.03]
[1752950805046,0.78,177.07,177.05,0.03]
[1752950805952,0.06,177.07,177.05,0.03]
[1752950806252,0.72,177.06,177.05,0.03]
[1752950807157,0.06,177.07,177.05,0.03]
[1752950808627,0.78,177.07,177.05,0.03]
[1752950810057,0.06,177.07,177.05,0.03]
[1752950810255,0.72,177.06,177.05,0.03]
[1752950812459,0.06,177.07,177.05,0.03]
[1752950812662,0.78,177.07,177.05,0.03]
[1752950816147,0.06,177.07,177.05,0.69]
[1752950816357,0.73,177.07,177.05,0.03]
[1752950817353,0.67,177.06,177.05,0.03]
[1752950820668,8.63171606,177.06,177.05,0.03]
[1752950821544,8.63171606,177.06,177.03,0.03]
[1752950821793,2.31391306,177.04,177.03,0.03]
[1752950822444,2.98391306,177.04,177.03,0.03]
[1752950823053,4.28893165,177.04,177.03,0.03]
[1752950823659,9.93737268,177.04,177.03,0.03]
[1752950824341,9.93737268,177.04,177.01,0.03]
[1752950824546,3.61893165,177.02,177.01,0.03]
[1752950824968,4.28893165,177.02,177.01,0.03]
[1752950826052,9.93801085,177.02,177.01,0.03]
[1752950826470,43.84791085,177.02,177.0,1e-08]
[1752950826668,17.45468397,177.01,177.0,1e-08]
[1752950826963,60.29361562,177.01,177.0,1e-08]
[1752950827638,42.78468397,176.98,176.97,1e-08]
[1752950827842,85.62361562,176.98,176.97,1e-08]
[1752950828039,85.62361562,176.98,176.93,0.03]
[1752950828040,48.43631729,176.94,176.93,1e-08]
[1752950828273,78.14949662,176.94,176.93,1e-08]
[1752950828489,95.60418059,176.94,176.93,1e-08]
[1752950828777,109.73326389,176.94,176.84,1.5813]
[1752950828973,3.61893165,176.88,176.84,1.5813]
[1752950829171,0.67,176.87,176.84,1.5813]
[1752950829381,3.61893165,176.87,176.83,26.66]
[1752950829578,0.67,176.87,176.83,0.66]
[1752950829880,4.28893165,176.87,176.83,29.61893165]
[1752950830077,0.67,176.87,176.84,26.0]
[1752950830295,3.61893165,176.85,176.8,7.2254]
[1752950830461,3.61893165,176.84,176.8,7.2254]
[1752950830786,3.61893165,176.87,176.82,3.61893165]
[1752950830958,4.28893165,176.86,176.82,0.66]
[1752950831766,0.67,176.86,176.83,0.66]
[1752950831958,3.61893165,176.86,176.83,0.66]
[1752950832677,42.97893165,176.87,176.83,0.66]
[1752950832980,43.64893165,176.87,176.83,0.66]
[1752950833365,4.28893165,176.86,176.82,0.66]
[1752950833976,39.36,176.87,176.83,0.66]
[1752950834167,39.36,176.88,176.86,3.61893165]
[1752950834364,39.36,176.88,176.87,0.66]
[1752950834586,39.36,176.9,176.86,3.61893165]
[1752950834769,40.03,176.9,176.86,4.27893165]
[1752950835292,45.68292689,176.9,176.86,4.27893165]
[1752950835494,45.01292689,176.9,176.86,4.27893165]
[1752950835668,0.67,176.89,176.86,4.27893165]
[1752950836583,0.67,176.89,176.86,3.61893165]
[1752950836995,0.67,176.89,176.86,4.27893165]
[1752950837165,39.36,176.9,176.88,3.61893165]
[1752950837366,39.36,176.91,176.89,3.61893165]
[1752950837561,39.36,176.91,176.9,3.61893165]
[1752950838184,40.03,176.91,176.87,0.66]
[1752950838385,40.03,176.91,176.89,3.61893165]
[1752950840093,40.03,176.91,176.88,3.61893165]
[1752950840599,0.67,176.9,176.87,3.61893165]
[1752950840778,0.67,176.89,176.87,3.61893165]
[1752950841376,49.30156215,176.91,176.87,3.61893165]
[1752950841682,39.36,176.91,176.89,3.61893165]
[1752950842279,40.03,176.91,176.89,3.61893165]
[1752950842476,40.03,176.91,176.88,3.61893165]
[1752950842684,40.03,176.91,176.89,3.61893165]
[1752950843104,0.7,176.95,176.9,4.30893165]
[1752950843311,39.34,176.94,176.91,4.30893165]
[1752950843478,40.04,176.94,176.91,3.61893165]
[1752950843673,39.34,176.94,176.87,5.6538468]
[1752950843890,0.7,176.93,176.88,0.69]
[1752950844103,0.7,176.92,176.9,3.61893165]
[1752950844484,40.04,176.94,176.9,3.61893165]
[1752950844694,39.34,176.94,176.9,4.30893165]
[1752950845012,0.7,176.93,176.9,3.61893165]
[1752950845188,44.99165889,176.94,176.9,3.61893165]
[1752950845390,0.7,176.92,176.86,28.2075]
[1752950845599,39.36,176.91,176.88,3.61893165]
[1752950845911,40.06,176.91,176.88,3.61893165]
[1752950846092,45.7127593,176.91,176.88,3.61893165]
[1752950846411,0.7,176.9,176.88,3.61893165]
[1752950846724,0.7,176.9,176.86,28.2075]
[1752950846895,0.7,176.9,176.88,3.61893165]
[1752950847208,39.36,176.91,176.89,3.61893165]
[1752950848294,39.36,176.91,176.87,6.37384963]
[1752950848484,39.36,176.91,176.89,3.61893165]
[1752950849494,40.06,176.91,176.89,3.61893165]
[1752950850089,0.7,176.9,176.88,3.61893165]
[1752950850297,0.7,176.9,176.87,3.64893165]
[1752950850490,0.7,176.89,176.87,3.64893165]
[1752950850682,0.7,176.89,176.87,0.03]
[1752950850882,0.7,176.88,176.87,0.03]
[1752950853214,6.35355042,176.88,176.87,0.03]
[1752950854021,45.75355042,176.88,176.87,0.03]
[1752950854513,49.37248207,176.88,176.87,1e-08]
[1752950854802,66.15716604,176.88,176.87,1e-08]
[1752950856391,72.56246604,176.88,176.87,1e-08]
[1752950858731,76.18139769,176.88,176.87,1e-08]
[1752950859302,76.18139769,176.88,176.83,0.03]
[1752950859303,5.65482922,176.84,176.83,0.03]
[1752950859519,62.83083393,176.84,176.75,1.6228]
[1752950859715,3.61893165,176.79,176.74,3.61893165]
[1752950860034,40.12,176.78,176.74,3.61893165]
[1752950860240,0.7,176.77,176.72,0.69]
[1752950860408,0.7,176.77,176.73,4.30893165]
[1752950860409,39.42,176.76,176.73,4.30893165]
[1752950860730,39.42,176.76,176.74,0.69]
[1752950860908,39.42,176.76,176.74,4.30893165]
[1752950861499,0.7,176.75,176.71,1.5934]
[1752950861704,0.7,176.75,176.71,5.21233165]
[1752950861910,0.7,176.74,176.71,3.61893165]
[1752950862171,0.7,176.74,176.7,10.12143165]
[1752950862309,3.61893165,176.75,176.71,26.0]
[1752950862835,0.7,176.74,176.71,26.0]
[1752950863209,0.7,176.74,176.71,0.69]
[1752950863451,0.7,176.74,176.71,4.30893165]
[1752950863824,0.7,176.74,176.71,0.69]
[1752950864341,0.7,176.74,176.7,3.61893165]
[1752950864544,0.7,176.74,176.7,4.30893165]
[1752950864719,6.35807498,176.74,176.7,4.30893165]
[1752950865035,6.35807498,176.74,176.7,3.61893165]
[1752950865246,0.7,176.74,176.71,0.69]
[1752950866108,5.65778188,176.75,176.71,4.30893165]
[1752950866544,6.35778188,176.75,176.71,3.61893165]
[1752950866838,6.35778188,176.75,176.72,0.69]
[1752950867148,39.52,176.74,176.73,3.61893165]
[1752950867437,39.52,176.74,176.73,4.30893165]
[1752950867622,39.52,176.74,176.72,3.61893165]
[1752950867831,39.52,176.74,176.72,4.30893165]
[1752950868013,5.65773295,176.75,176.71,3.61893165]
[1752950868212,45.87773295,176.75,176.71,4.30893165]
[1752950869338,45.87773295,176.75,176.71,3.61893165]
[1752950869662,45.87773295,176.75,176.72,0.69]
[1752950870628,45.87773295,176.75,176.71,3.61893165]
[1752950870940,45.87773295,176.75,176.71,4.30893165]
[1752950872633,39.52,176.75,176.72,4.30893165]
[1752950872843,39.52,176.75,176.73,0.69]
[1752950873218,39.52,176.75,176.72,3.61893165]
[1752950873418,39.52,176.75,176.72,4.28893165]
[1752950873624,39.5,176.75,176.73,4.28893165]
[1752950874743,39.5,176.75,176.74,0.67]
[1752950875843,39.5,176.76,176.73,3.61893165]
[1752950876222,39.5,176.76,176.73,4.28893165]
[1752950877037,40.21,176.76,176.73,4.28893165]
[1752950878324,39.5,176.76,176.73,3.61893165]
[1752950878525,0.71,176.78,176.74,4.28893165]
[1752950878853,39.48,176.77,176.74,4.28893165]
[1752950879759,39.48,176.77,176.75,0.67]
[1752950880330,0.71,176.78,176.75,0.67]
[1752950880545,39.48,176.77,176.75,0.67]
[1752950881256,0.71,176.76,176.73,3.61893165]
[1752950881766,39.48,176.77,176.74,4.28893165]
[1752950881944,39.48,176.77,176.75,0.67]
[1752950882139,39.48,176.77,176.76,0.67]
[1752950882333,0.71,176.8,176.76,4.28893165]
[1752950882670,39.98,176.79,176.76,4.28893165]
[1752950883170,39.98,176.79,176.78,3.61893165]
[1752950883324,39.48,176.81,176.76,5.65711674]
[1752950883520,3.61893165,176.77,176.73,0.67]